bitfinex/quotes_SOLUSD_20251001
["timestamp","ask_amount","ask_price","bid_price","bid_amount"]
[1759292344442,16.76858443,208.73,208.67,20.8]
[1759292344646,16.76858443,208.73,208.68,33.9]
[1759292344847,0.69,208.72,208.68,33.9]
[1759292345049,13.59559401,208.82,208.67,17.49997998]
[1759292345050,0.69,208.74,208.67,17.49997998]
[1759292346063,0.69,208.73,208.67,17.49997998]
[1759292346268,0.69,208.72,208.68,33.9]
[1759292346567,0.69,208.71,208.68,33.9]
[1759292347175,4.79156684,208.7,208.68,33.9]
[1759292348744,16.77048394,208.7,208.67,17.49997998]
[1759292348946,28.74113814,208.76,208.68,33.9]
[1759292349152,0.69,208.72,208.68,33.9]
[1759292349370,0.69,208.71,208.68,33.9]
[1759292349561,0.69,208.73,208.68,33.9]
[1759292349752,40.71661236,208.76,208.68,33.9]
[1759292349753,0.69,208.72,208.68,33.9]
[1759292350148,0.69,208.71,208.68,33.9]
[1759292351346,4.79156684,208.7,208.68,33.9]
[1759292352454,0.69,208.69,208.68,33.9]
[1759292353552,4.79179644,208.69,208.67,17.49997998]
[1759292353867,5.48179644,208.69,208.68,33.88]
[1759292354100,23.95094845,208.76,208.68,33.88]
[1759292354101,0.69,208.72,208.68,33.88]
[1759292354771,0.69,208.71,208.68,33.88]
[1759292355175,12.66756897,208.73,208.68,33.88]
[1759292355372,0.69,208.72,208.68,33.88]
[1759292355981,4.79041916,208.75,208.71,20.8]
[1759292356288,4.79041916,208.75,208.72,33.88]
[1759292356470,5.48041916,208.75,208.73,33.88]
[1759292356868,4.79041916,208.75,208.73,33.88]
[1759292357070,0.69,208.74,208.73,33.88]
[1759292357466,0.1,208.77,208.73,33.88]
[1759292357810,0.1,208.77,208.76,20.8]
[1759292357985,0.79,208.77,208.76,54.68]
[1759292358189,17.55486084,208.77,208.76,33.88]
[1759292358778,4.88996024,208.77,208.76,33.88]
[1759292358977,5.57996024,208.77,208.76,33.88]
[1759292359179,17.55486084,208.77,208.7,20.8]
[1759292359379,17.55486084,208.77,208.71,33.88]
[1759292359986,4.88996024,208.77,208.71,33.88]
[1759292360192,4.88996024,208.77,208.74,20.8]
[1759292360371,4.88996024,208.77,208.75,33.88]
[1759292360572,5.57996024,208.77,208.75,33.88]
[1759292361189,0.1,208.77,208.75,33.88]
[1759292361379,4.89000991,208.77,208.76,33.88]
[1759292362295,0.1,208.77,208.76,33.88]
[1759292362874,4.88996024,208.77,208.76,33.88]
[1759292363388,17.58486084,208.77,208.7,4.02403431]
[1759292363574,17.58486084,208.77,208.71,20.8]
[1759292363774,17.58486084,208.77,208.72,33.88]
[1759292364198,5.60996024,208.77,208.72,33.88]
[1759292365792,0.72,208.76,208.72,33.88]
[1759292366295,4.79041916,208.75,208.72,33.88]
[1759292366496,17.48646706,208.75,208.72,33.88]
[1759292366669,0.72,208.74,208.72,33.88]
[1759292367074,0.72,208.74,208.67,4.02403431]
[1759292367075,0.72,208.73,208.69,20.8]
[1759292367299,0.72,208.73,208.7,33.88]
[1759292367484,0.72,208.72,208.7,33.88]
[1759292368290,4.79133726,208.71,208.7,33.88]
[1759292368495,5.51133726,208.71,208.7,33.88]
[1759292368696,4.79133726,208.71,208.7,33.88]
[1759292369076,5.51133726,208.71,208.7,33.88]
[1759292370290,17.48968041,208.71,208.64,37.36]
[1759292370491,3.20918077,208.7,208.64,37.36]
[1759292370692,0.72,208.69,208.65,33.88]
[1759292371003,0.72,208.68,208.65,33.88]
[1759292371196,0.72,208.67,208.65,33.88]
[1759292371400,0.72,208.69,208.65,33.88]
[1759292371894,17.48968041,208.71,208.65,33.88]
[1759292372292,0.72,208.7,208.65,33.88]
[1759292372486,0.72,208.69,208.65,33.88]
[1759292372988,28.74537833,208.73,208.65,59.47264145]
[1759292372989,4.79087816,208.73,208.65,59.47264145]
[1759292373192,4.79087816,208.73,208.68,20.8]
[1759292373392,4.79087816,208.73,208.69,33.88]
[1759292373901,5.51087816,208.73,208.69,33.88]
[1759292374104,634.22083188,209.74,208.69,33.88]
[1759292374105,4.79018969,208.76,208.69,33.88]
[1759292375407,4.79018969,208.76,208.69,38.67179454]
[1759292376608,0.72,208.75,208.7,33.88]
[1759292376809,0.72,208.75,208.71,33.88]
[1759292377286,16.76566391,208.76,208.71,33.88]
[1759292377790,0.72,208.75,208.66,4.02403431]
[1759292377996,0.72,208.74,208.67,33.88]
[1759292378184,0.72,208.73,208.67,33.88]
[1759292378591,4.7911077,208.72,208.67,33.88]
[1759292379009,0.72,208.71,208.67,33.88]
[1759292379207,0.72,208.7,208.67,33.88]
[1759292379697,16.76887696,208.72,208.67,33.88]
[1759292380008,17.48887696,208.72,208.67,33.88]
[1759292380711,0.72,208.71,208.65,2.33]
[1759292380898,0.72,208.7,208.66,33.88]
[1759292382917,4.79179644,208.69,208.66,33.88]
[1759292384108,16.76979827,208.71,208.66,33.88]
[1759292384312,17.48979827,208.71,208.66,33.88]
[1759292384511,16.76979827,208.71,208.66,33.88]
[1759292384687,0.72,208.7,208.66,33.88]
[1759292385610,0.72,208.73,208.66,33.88]
[1759292387208,0.72,208.72,208.66,33.88]
[1759292387709,16.76968041,208.71,208.66,33.88]
[1759292388010,0.72,208.7,208.67,33.9]
[1759292388200,16.76968041,208.71,208.67,33.9]
[1759292388399,0.72,208.7,208.67,33.9]
[1759292388601,0.72,208.69,208.67,33.9]
[1759292388812,0.72,208.68,208.67,33.9]
[1759292390095,5.51202606,208.68,208.67,33.9]
[1759292394110,4.79202606,208.68,208.67,33.9]
[1759292395287,16.77048394,208.7,208.67,33.9]
[1759292395490,3.77301604,208.83,208.67,33.9]
[1759292395491,12.68689402,208.74,208.67,33.9]
[1759292395690,0.71,208.73,208.67,33.9]
[1759292396500,11.97689402,208.74,208.67,33.9]
[1759292396713,0.71,208.72,208.67,33.9]
[1759292397298,4.79133726,208.71,208.67,33.9]
[1759292398023,4.79074187,208.74,208.7,20.8]
[1759292398209,4.79074187,208.74,208.71,33.9]
[1759292399215,16.76646706,208.75,208.71,33.9]
[1759292399405,17.47646706,208.75,208.71,33.9]
[1759292400216,0.71,208.74,208.71,33.9]
[1759292400414,4.79041916,208.75,208.71,33.9]
[1759292400727,0.1,208.77,208.74,20.8]
[1759292400728,4.88996775,208.77,208.74,20.8]
[1759292400911,4.88996775,208.77,208.75,71.26]
[1759292401422,0.1,208.77,208.75,71.26]
[1759292402931,0.1,208.77,208.75,76.05040635]
[1759292405227,0.1,208.77,208.75,80.07177077]
[1759292405412,0.1,208.77,208.75,76.05040635]
[1759292406528,0.1,208.77,208.76,4.79018969]
[1759292407926,0.1,208.77,208.75,71.26]
[1759292408125,0.1,208.77,208.75,76.05034617]
[1759292409030,0.1,208.77,208.75,71.26]
[1759292409418,0.1,208.77,208.75,37.36]
[1759292409749,0.1,208.77,208.76,33.86]
[1759292409921,0.1,208.77,208.75,37.36]
[1759292410119,0.1,208.77,208.76,33.86]
[1759292413222,0.1,208.77,208.76,38.65018969]
[1759292417238,0.1,208.77,208.76,52.2457837]
[1759292418139,0.1,208.77,208.76,95.65010684]
[1759292418741,0.1,208.77,208.76,172.65010684]
[1759292420350,0.1,208.77,208.76,157.9957837]
[1759292420531,0.1,208.77,208.76,172.3657837]
[1759292421139,0.1,208.77,208.76,172.65010684]
[1759292422046,0.66,208.83,208.79,20.8]
[1759292422252,0.66,208.83,208.82,20.8]
[1759292422464,4.78800684,208.86,208.82,54.66]
[1759292423031,0.66,208.85,208.82,54.66]
[1759292423356,0.67,208.84,208.82,54.66]
[1759292423534,0.67,208.83,208.82,54.66]
[1759292423740,5.45858401,208.83,208.82,54.66]
[1759292424152,17.43004404,208.83,208.79,209.7]
[1759292424363,0.67,208.82,208.8,33.86]
[1759292424856,0.1,208.87,208.8,33.86]
[1759292425153,17.42763668,208.86,208.82,20.8]
[1759292425381,0.67,208.85,208.83,33.86]
[1759292425558,4.78835472,208.84,208.83,33.86]
[1759292425851,5.45835472,208.84,208.83,33.86]
[1759292428031,17.42924152,208.84,208.8,97.7]
[1759292428230,0.67,208.83,208.81,33.86]
[1759292428627,0.67,208.82,208.81,33.86]
[1759292429648,5.45881333,208.82,208.81,33.86]
[1759292430242,17.43084666,208.82,208.78,37.32]
[1759292430463,0.67,208.81,208.78,37.32]
[1759292430651,16.76084666,208.82,208.78,37.32]
[1759292430652,0.67,208.8,208.79,33.86]
[1759292431648,5.45927203,208.8,208.79,33.86]
[1759292438386,4.78835472,208.84,208.79,33.86]
[1759292438544,4.78835472,208.84,208.79,54.66]
[1759292438744,0.67,208.83,208.79,54.66]
[1759292438976,0.67,208.82,208.81,20.8]
[1759292439149,16.75924152,208.84,208.81,54.66]
[1759292439150,4.78835472,208.84,208.81,54.66]
[1759292439872,5.45835472,208.84,208.81,54.66]
[1759292440078,0.67,208.83,208.81,54.66]
[1759292440406,4.78881333,208.82,208.81,54.66]
[1759292441749,5.45881333,208.82,208.81,54.66]
[1759292442180,4.78881333,208.82,208.81,54.66]
[1759292442480,0.67,208.82,208.81,54.66]
[1759292444294,4.78881333,208.82,208.81,54.66]
[1759292444475,4.78861288,208.83,208.81,54.66]
[1759292445485,0.67,208.82,208.78,58.12]
[1759292445690,0.67,208.81,208.79,71.2]
[1759292445869,0.67,208.8,208.79,71.2]
[1759292446198,5.45861288,208.83,208.79,71.2]
[1759292446396,0.67,208.82,208.79,71.2]
[1759292446690,4.78789619,208.86,208.79,71.2]
[1759292446691,0.67,208.81,208.79,71.2]
[1759292447931,0.1,208.87,208.82,20.8]
[1759292448071,0.1,208.87,208.86,20.8]
[1759292448395,0.1,208.87,208.86,33.84]
[1759292448892,4.88766696,208.87,208.86,33.84]
[1759292449065,5.55766696,208.87,208.86,33.84]
[1759292449569,4.88766696,208.87,208.86,33.84]
[1759292450476,4.88766696,208.87,208.79,37.34]
[1759292450477,18.93543585,208.87,208.79,37.34]
[1759292450685,1.40860147,208.84,208.79,37.34]
[1759292450884,0.67,208.83,208.79,37.34]
[1759292451189,0.67,208.82,208.79,37.34]
[1759292451393,0.67,208.81,208.79,37.34]
[1759292451580,0.67,208.8,208.79,37.34]
[1759292451781,0.67,208.8,208.79,71.18]
[1759292452098,0.67,208.83,208.79,71.18]
[1759292452291,0.67,208.82,208.79,71.18]
[1759292452491,5.45904267,208.81,208.79,71.18]
[1759292452675,0.67,208.8,208.79,71.18]
[1759292453284,0.67,208.8,208.74,4.02136442]
[1759292453487,0.7,208.79,208.75,33.84]
[1759292453999,0.7,208.78,208.75,33.84]
[1759292454211,16.76164934,208.81,208.75,33.84]
[1759292454379,0.7,208.77,208.75,33.84]
[1759292454807,4.79018969,208.76,208.75,33.84]
[1759292454974,5.49018969,208.76,208.75,33.84]
[1759292455578,17.46566391,208.76,208.71,4.02136442]
[1759292455910,0.7,208.75,208.72,33.84]
[1759292456070,0.28432314,208.83,208.72,33.84]
[1759292456071,0.7,208.79,208.72,33.84]
[1759292456273,4.78881333,208.82,208.72,33.84]
[1759292456274,0.7,208.8,208.72,33.84]
[1759292456472,0.7,208.8,208.72,37.86136442]
[1759292456672,4.78950141,208.79,208.72,58.66136442]
[1759292456980,4.78950141,208.79,208.75,20.8]
[1759292457284,4.78950141,208.79,208.76,33.86]
[1759292458004,12.67248314,208.82,208.76,33.86]
[1759292458005,16.76164934,208.81,208.76,33.86]
[1759292458789,17.46164934,208.81,208.76,33.86]
[1759292459407,0.7,208.8,208.77,33.86]
[1759292459987,0.7,208.8,208.78,37.34]
[1759292460195,0.7,208.8,208.79,33.86]
[1759292460505,5.48927203,208.8,208.79,33.86]
[1759292461426,4.78927203,208.8,208.79,33.86]
[1759292462598,4.78881333,208.82,208.79,33.86]
[1759292463104,12.67015353,208.86,208.79,33.86]
[1759292463687,16.75843906,208.85,208.79,33.86]
[1759292463875,17.45843906,208.85,208.79,33.86]
[1759292464079,4.78812544,208.85,208.79,33.86]
[1759292464690,4.78789619,208.86,208.79,33.86]
[1759292465091,4.78789619,208.86,208.81,20.8]
[1759292465295,4.78789619,208.86,208.82,33.86]
[1759292465606,0.7,208.85,208.81,20.8]
[1759292465917,0.7,208.85,208.82,33.86]
[1759292466806,0.7,208.84,208.81,20.8]
[1759292467004,0.7,208.84,208.83,33.84]
[1759292467506,0.7,208.84,208.78,41.36136442]
[1759292467712,16.75763668,208.86,208.78,37.34]
[1759292467713,2.20018089,208.82,208.78,37.34]
[1759292467894,2.20018089,208.82,208.69,6.08924047]
[1759292467895,2.20018089,208.79,208.7,4.02136442]
[1759292468090,0.7,208.78,208.71,33.84]
[1759292468421,0.7,208.78,208.71,37.86136442]
[1759292468782,16.76486084,208.77,208.71,37.86136442]
[1759292469018,0.7,208.76,208.71,58.66136442]
[1759292469188,0.7,208.75,208.71,58.66136442]
[1759292469385,0.7,208.75,208.71,54.64]
[1759292469894,0.7,208.75,208.72,37.34]
[1759292470117,16.76486084,208.77,208.72,37.34]
[1759292470284,0.7,208.74,208.73,33.86]
[1759292470906,5.49064865,208.74,208.73,33.86]
[1759292474722,5.49064865,208.74,208.72,37.34]
[1759292474920,0.7,208.73,208.72,37.34]
[1759292476016,4.79038918,208.76,208.72,71.2]
[1759292476190,19.96999999,208.88,208.72,71.2]
[1759292476191,13.59559401,208.88,208.75,20.8]
[1759292476397,4.78881333,208.82,208.76,33.88]
[1759292477101,5.48881333,208.82,208.77,33.9]
[1759292477304,4.78881333,208.82,208.77,33.9]
[1759292478327,16.76084666,208.82,208.77,33.9]
[1759292478627,0.72,208.81,208.77,33.9]
[1759292478800,0.72,208.8,208.77,33.9]
[1759292479000,0.72,208.8,208.78,33.9]
[1759292479310,12.69203333,208.82,208.78,33.9]
[1759292479497,0.72,208.81,208.78,33.9]
[1759292480329,4.78927203,208.8,208.78,33.9]
[1759292480920,0.72,208.79,208.72,37.34]
[1759292481135,0.72,208.78,208.73,33.9]
[1759292481304,0.72,208.77,208.73,33.9]
[1759292481717,0.72,208.77,208.72,37.34]
[1759292481718,0.72,208.76,208.72,37.34]
[1759292481916,0.72,208.75,208.72,37.34]
[1759292482222,4.79087816,208.73,208.72,37.34]
[1759292483114,5.45087816,208.73,208.72,71.26]
[1759292489218,5.45087816,208.73,208.72,71.22]
[1759292490245,17.42807357,208.73,208.66,20.8]
[1759292490447,0.66,208.72,208.66,20.8]
[1759292491420,16.76968041,208.71,208.67,33.86]
[1759292491828,17.42968041,208.71,208.67,33.86]
[1759292493851,0.66,208.7,208.67,33.86]
[1759292494152,0.66,208.69,208.67,33.86]
[1759292494828,5.45202606,208.68,208.67,33.86]
[1759292495458,17.43209123,208.68,208.65,2.33]
[1759292495634,0.66,208.67,208.65,2.33]
[1759292495834,0.66,208.66,208.65,2.33]
[1759292496753,5.73680852,208.66,208.65,36.19]
[1759292497277,5.45248538,208.66,208.65,36.19]
[1759292498340,0.28432314,208.65,208.56,0.2]
[1759292498547,0.66,208.64,208.56,0.2]
[1759292498745,16.7761108,208.63,208.56,0.2]
[1759292499256,17.4361108,208.63,208.58,20.8]
[1759292499465,0.66,208.62,208.58,20.8]
[1759292499674,0.66,208.62,208.59,33.88]
[1759292499847,0.66,208.62,208.6,37.36]
[1759292500242,16.7761108,208.63,208.6,37.36]
[1759292500543,0.66,208.61,208.6,37.36]
[1759292500745,5.45363405,208.61,208.6,37.36]
[1759292502546,12.64293629,208.63,208.6,71.24]
[1759292502750,0.66,208.62,208.6,71.24]
[1759292503555,0.66,208.61,208.6,71.24]
[1759292504572,5.45363405,208.61,208.6,71.24]
[1759292504935,23.96242691,208.66,208.6,71.24]
[1759292504936,4.79343253,208.62,208.6,71.24]
[1759292506448,4.79320594,208.63,208.6,71.24]
[1759292506645,4.79248538,208.66,208.6,71.24]
[1759292506944,16.77369883,208.66,208.6,71.24]
[1759292508259,11.98121345,208.66,208.6,71.24]
[1759292511160,11.98121345,208.66,208.6,148.24]
[1759292511740,12.64121345,208.66,208.6,148.24]
[1759292513168,11.98121345,208.66,208.6,148.24]
[1759292514255,0.28432314,208.69,208.6,148.24]
[1759292514470,0.71,208.67,208.6,148.24]
[1759292515059,16.77048394,208.7,208.6,148.24]
[1759292515971,16.77048394,208.7,208.63,20.8]
[1759292516153,0.71,208.69,208.64,33.88]
[1759292516473,0.71,208.68,208.65,33.88]
[1759292516667,0.71,208.67,208.65,33.88]
[1759292516872,16.77048394,208.7,208.65,33.88]
[1759292516873,0.71,208.66,208.65,33.88]
[1759292518052,5.50248538,208.66,208.65,33.88]
[1759292518965,5.50248538,208.66,208.56,147.43984189]
[1759292518966,13.87991715,208.65,208.56,1e-08]
[1759292519279,13.87991715,208.65,208.46,0.2]
[1759292519280,20.8,208.53,208.46,0.2]
[1759292519485,0.28432314,208.55,208.47,17.9]
[1759292519486,13.87991715,208.48,208.47,17.9]
[1759292519779,13.87991715,208.48,208.46,37.36]
[1759292519780,0.28432314,208.47,208.46,37.36]
[1759292519974,0.99432314,208.47,208.46,37.36]
[1759292520154,5.7911764,208.47,208.46,37.36]
[1759292520352,4.79685326,208.47,208.46,37.36]
[1759292520786,4.79685326,208.47,208.46,71.36]
[1759292521289,5.50685326,208.47,208.46,71.36]
[1759292521574,4.79685326,208.47,208.46,71.36]
[1759292521780,4.79593304,208.51,208.46,71.36]
[1759292521958,0.71,208.5,208.46,71.36]
[1759292522156,5.50639311,208.49,208.46,37.36]
[1759292522372,0.71,208.48,208.47,34.04]
[1759292523178,16.78737589,208.49,208.47,34.04]
[1759292523471,0.71,208.48,208.47,34.04]
[1759292524085,16.78737589,208.49,208.47,34.04]
[1759292524379,11.99098278,208.49,208.47,34.04]
[1759292524963,4.79616306,208.5,208.47,34.04]
[1759292525156,17.49657073,208.5,208.47,34.04]
[1759292525499,16.78657073,208.5,208.47,34.04]
[1759292525688,16.78657073,208.5,208.39,0.2]
[1759292525689,13.59559401,208.48,208.39,0.2]
[1759292525858,0.28432314,208.47,208.4,37.38]
[1759292526066,2.91453896,208.46,208.4,37.38]
[1759292526258,34.39559401,208.49,208.4,37.38]
[1759292526259,15.29445148,208.44,208.4,37.38]
[1759292526459,0.71,208.43,208.4,37.38]
[1759292526673,0.28432314,208.43,208.4,37.38]
[1759292526871,0.71,208.42,208.41,34.12]
[1759292528377,4.79800403,208.42,208.41,34.12]
[1759292529576,11.99328376,208.45,208.41,34.12]
[1759292529577,11.99177001,208.48,208.41,34.12]
[1759292529778,0.71,208.49,208.41,34.12]
[1759292529985,11.99213316,208.47,208.41,34.12]
[1759292531780,5.50662317,208.48,208.41,34.12]
[1759292531974,4.79662317,208.48,208.41,34.12]
[1759292532280,4.79547307,208.53,208.44,20.8]
[1759292532482,4.79547307,208.53,208.45,34.12]
[1759292532677,11.98834889,208.54,208.45,34.12]
[1759292532678,16.783592,208.54,208.45,34.12]
[1759292532873,4.79524311,208.54,208.48,20.8]
[1759292533073,4.79499138,208.56,208.52,20.8]
[1759292533391,3.17424054,208.61,208.53,34.16]
[1759292533392,0.71,208.59,208.53,34.16]
[1759292533559,0.71,208.59,208.54,34.18]
[1759292533758,16.77889048,208.6,208.54,34.18]
[1759292535898,11.98502663,208.6,208.54,34.18]
[1759292538274,4.79340427,208.62,208.57,20.8]
[1759292538476,4.79340427,208.62,208.58,34.14]
[1759292538670,4.79340427,208.62,208.59,37.38]
[1759292539903,16.77650619,208.63,208.59,37.38]
[1759292540772,17.44650619,208.63,208.59,37.38]
[1759292544579,11.98152889,208.66,208.59,37.38]
[1759292545293,16.77450275,208.65,208.59,37.38]
[1759292546282,11.98178768,208.65,208.59,37.38]
[1759292546796,4.79248538,208.66,208.59,37.38]
[1759292547176,16.77369883,208.66,208.59,37.38]
[1759292549803,12.66121345,208.66,208.59,114.38]
[1759292551306,4.79225571,208.67,208.59,114.38]
[1759292551481,4.79225571,208.67,208.62,20.8]
[1759292551681,0.68,208.67,208.63,34.02]
[1759292552708,4.79158262,208.7,208.66,20.8]
[1759292552889,4.79158262,208.7,208.67,34.02]
[1759292553600,0.68,208.73,208.67,34.02]
[1759292553905,0.68,208.78,208.7,20.8]
[1759292554083,0.68,208.78,208.71,34.04]
[1759292554787,16.76486084,208.77,208.71,34.04]
[1759292556204,17.44486084,208.77,208.71,34.04]
[1759292558716,11.9749006,208.77,208.72,34.0]
[1759292558927,0.68,208.76,208.72,34.0]
[1759292559718,23.94753344,208.79,208.72,34.0]
[1759292559909,0.96432314,208.78,208.73,33.98]
[1759292560221,0.68,208.77,208.74,33.98]
[1759292560428,0.68,208.76,208.74,33.98]
[1759292560723,0.68,208.75,208.74,33.98]
[1759292560907,5.47041916,208.75,208.74,33.98]
[1759292561108,5.47041916,208.75,208.7,20.8]
[1759292561109,17.44646706,208.75,208.7,20.8]
[1759292561423,17.44646706,208.75,208.67,37.36]
[1759292561424,0.68,208.74,208.67,37.36]
[1759292561599,0.68,208.73,208.68,34.04]
[1759292561801,0.68,208.72,208.67,37.36]
[1759292562002,0.68,208.71,208.68,34.04]
[1759292562324,0.68,208.7,208.67,37.36]
[1759292562503,0.68,208.69,208.68,34.04]
[1759292563105,5.47179644,208.69,208.68,34.04]
[1759292563319,5.47179644,208.69,208.68,71.4]
[1759292563714,5.47179644,208.69,208.68,37.36]
[1759292564102,5.47179644,208.69,208.68,71.4]
[1759292564303,5.47179644,208.69,208.68,37.36]
[1759292564511,5.47179644,208.69,208.68,71.38]
[1759292565226,5.75611958,208.69,208.68,37.36]
[1759292565529,5.75611958,208.69,208.68,71.38]
[1759292565731,5.75611958,208.69,208.57,20.8]
[1759292565732,43.10537972,208.69,208.57,20.8]
[1759292565913,0.68,208.68,208.57,20.8]
[1759292566117,0.68,208.67,208.57,20.8]
[1759292566508,41.01459291,208.69,208.55,13.59559401]
[1759292566509,0.68,208.66,208.55,13.59559401]
[1759292566713,0.68,208.65,208.53,13.87991715]
[1759292566930,0.68,208.65,208.58,20.8]
[1759292567105,0.68,208.65,208.59,34.02]
[1759292567306,16.77530674,208.64,208.59,34.02]
[1759292567520,17.45530674,208.64,208.59,34.02]
[1759292568020,17.45530674,208.64,208.6,34.02]
[1759292568222,16.77530674,208.64,208.61,34.02]
[1759292568428,16.77530674,208.64,208.62,34.02]
[1759292569340,0.68,208.63,208.49,5.48040714]
[1759292569506,0.68,208.62,208.48,13.59559401]
[1759292569705,0.96432314,208.61,208.44,13.59559401]
[1759292570012,0.82216157,208.6,208.46,13.59559401]
[1759292570329,0.68,208.59,208.49,20.8]
[1759292570536,0.68,208.58,208.5,34.02]
[1759292570829,16.78093684,208.57,208.5,34.02]
[1759292571235,4.79455338,208.57,208.53,20.8]
[1759292571416,4.79455338,208.57,208.54,34.02]
[1759292573218,11.98599274,208.58,208.54,34.02]
[1759292573414,0.7,208.57,208.54,34.02]
[1759292573816,0.7,208.56,208.43,5.08194598]
[1759292574021,0.7,208.55,208.43,13.59559401]
[1759292574211,0.7,208.55,208.49,20.8]
[1759292574528,0.7,208.55,208.5,34.02]
[1759292574720,0.7,208.55,208.51,34.02]
[1759292575114,16.7833509,208.54,208.51,34.02]
[1759292576524,11.98810779,208.54,208.51,34.02]
[1759292577515,12.68810779,208.54,208.51,34.02]
[1759292578431,4.79478327,208.56,208.51,34.02]
[1759292579130,16.78174145,208.56,208.51,34.02]
[1759292580330,23.97046838,208.59,208.51,111.02]
[1759292580331,16.77940031,208.59,208.51,111.02]
[1759292580537,17.47940031,208.59,208.51,111.02]
[1759292581138,0.7,208.58,208.51,77.0]
[1759292581437,0.7,208.57,208.49,20.8]
[1759292581621,0.7,208.56,208.5,34.0]
[1759292581821,0.7,208.55,208.51,34.0]
[1759292582121,0.7,208.54,208.51,34.0]
[1759292582840,4.79547307,208.53,208.51,34.0]
[1759292584835,16.7827501,208.55,208.51,34.0]
[1759292585124,4.79455338,208.57,208.51,34.0]
[1759292585322,4.79455338,208.57,208.51,54.8]
[1759292586229,16.77820364,208.61,208.54,20.8]
[1759292586522,0.28432314,208.63,208.51,59.59586899]
[1759292586523,4.79317451,208.63,208.58,20.8]
[1759292586727,4.79317451,208.63,208.59,34.02]
[1759292586929,4.79317451,208.63,208.62,20.8]
[1759292587128,4.79317451,208.63,208.62,54.84]
[1759292587843,16.77321509,208.67,208.62,92.22]
[1759292588040,0.7,208.66,208.62,92.22]
[1759292588636,16.77321509,208.67,208.62,92.22]
[1759292588815,17.47321509,208.67,208.62,92.22]
[1759292591144,16.77321509,208.67,208.62,92.22]
[1759292591350,0.7,208.66,208.63,34.02]
[1759292591641,0.7,208.66,208.62,57.68]
[1759292592044,4.79188717,208.69,208.62,62.47337868]
[1759292592346,4.79188717,208.69,208.62,57.68]
[1759292592546,16.77137828,208.69,208.62,57.68]
[1759292592851,11.97949111,208.69,208.63,34.02]
[1759292593453,0.7,208.68,208.62,57.68]
[1759292593650,0.7,208.68,208.63,34.0]
[1759292594037,11.97949111,208.69,208.63,34.0]
[1759292594543,11.97949111,208.69,208.66,20.8]
[1759292594749,11.97949111,208.69,208.67,34.02]
[1759292595139,4.79156684,208.7,208.67,34.02]
[1759292595332,16.77048394,208.7,208.67,34.02]
[1759292595540,17.47048394,208.7,208.68,34.02]
[1759292595929,16.77048394,208.7,208.68,34.02]
[1759292597749,4.7911077,208.72,208.68,34.02]
[1759292598944,16.76848309,208.73,208.68,34.02]
[1759292599448,17.47848309,208.73,208.68,34.02]